[Event "Early-Titled-Tuesday-Blitz-October-24-2023"]
[Site "Chess.com"]
[Date "2023.10.24"]
[Round "2"]
[White "pinguino120"]
[Black "Cambek64"]
[Result "0-1"]
[WhiteElo "2190"]
[BlackElo "2449"]
[TimeControl "180+1"]
[EndTime "8:16:21 PDT"]
[Termination "Cambek64 won by checkmate"]

1. e4 {[%clk 0:03:00.9]} 1... e6 {[%clk 0:02:59.3]} 2. d4 {[%clk 0:02:58.3]}
2... d5 {[%clk 0:02:59.9]} 3. e5 {[%clk 0:02:57.3]} 3... c5 {[%clk 0:02:59.5]}
4. c3 {[%clk 0:02:57.8]} 4... Nc6 {[%clk 0:02:59.7]} 5. Nf3 {[%clk 0:02:58.4]}
5... Bd7 {[%clk 0:02:57.6]} 6. a3 {[%clk 0:02:40.1]} 6... Nge7 {[%clk
0:02:52.8]} 7. b4 {[%clk 0:02:38.4]} 7... cxd4 {[%clk 0:02:51.8]} 8. cxd4 {[%clk
0:02:38.1]} 8... Nf5 {[%clk 0:02:51.1]} 9. Bb2 {[%clk 0:02:38.2]} 9... Qb6
{[%clk 0:02:42.1]} 10. Be2 {[%clk 0:02:22.3]} 10... Be7 {[%clk 0:02:34.4]} 11.
O-O {[%clk 0:02:22]} 11... h5 {[%clk 0:02:33.2]} 12. b5 {[%clk 0:02:08.7]} 12...
Na5 {[%clk 0:02:31.1]} 13. Nc3 {[%clk 0:02:08.6]} 13... Rc8 {[%clk 0:02:30.5]}
14. Na4 {[%clk 0:02:00.2]} 14... Qd8 {[%clk 0:02:29.3]} 15. Rc1 {[%clk
0:01:53.9]} 15... g5 {[%clk 0:02:21.8]} 16. Nc5 {[%clk 0:01:41.1]} 16... b6
{[%clk 0:02:20.3]} 17. Nb3 {[%clk 0:01:29.6]} 17... g4 {[%clk 0:02:19.1]} 18.
Ne1 {[%clk 0:01:28.4]} 18... Nc4 {[%clk 0:02:14]} 19. Bxc4 {[%clk 0:01:27.5]}
19... dxc4 {[%clk 0:02:14.2]} 20. Nd2 {[%clk 0:01:26.9]} 20... Bxb5 {[%clk
0:02:14.6]} 21. a4 {[%clk 0:01:20.1]} 21... Ba6 {[%clk 0:02:13.2]} 22. Ne4
{[%clk 0:01:09.2]} 22... Bb7 {[%clk 0:02:01.8]} 23. Nc3 {[%clk 0:00:53.2]} 23...
Nxd4 {[%clk 0:01:53.8]} 24. Nc2 {[%clk 0:00:47.8]} 24... Bc5 {[%clk 0:01:48.1]}
25. Nxd4 {[%clk 0:00:43.2]} 25... Qxd4 {[%clk 0:01:43.4]} 26. Qe2 {[%clk
0:00:40.4]} 26... a6 {[%clk 0:01:28.4]} 27. Rfd1 {[%clk 0:00:20]} 27... Qf4
{[%clk 0:01:26.9]} 28. Rc2 {[%clk 0:00:18.9]} 28... h4 {[%clk 0:01:16.5]} 29.
Bc1 {[%clk 0:00:18]} 29... Qf5 {[%clk 0:01:14.3]} 30. Rcd2 {[%clk 0:00:17.6]}
30... g3 {[%clk 0:01:10.7]} 31. a5 {[%clk 0:00:16.6]} 31... Bxf2+ {[%clk
0:00:42.6]} 32. Kh1 {[%clk 0:00:16.4]} 32... h3 {[%clk 0:00:41.9]} 33. Rd5
{[%clk 0:00:15.3]} 33... hxg2+ {[%clk 0:00:41.2]} 34. Kxg2 {[%clk 0:00:13.6]}
34... Rxh2+ {[%clk 0:00:41.8]} 35. Kf1 {[%clk 0:00:13.8]} 35... g2# {[%clk
0:00:41.6]} 0-1

[Event "Early-Titled-Tuesday-Blitz-October-24-2023"]
[Site "Chess.com"]
[Date "2023.10.24"]
[Round "2"]
[White "HeroRubiksCube"]
[Black "chessfatbear"]
[Result "0-1"]
[WhiteElo "2535"]
[BlackElo "2807"]
[TimeControl "180+1"]
[EndTime "8:16:26 PDT"]
[Termination "chessfatbear won by resignation"]

1. e4 {[%clk 0:03:00.9]} 1... c6 {[%clk 0:02:58.2]} 2. d4 {[%clk 0:03:00.1]}
2... d5 {[%clk 0:02:59.1]} 3. Nc3 {[%clk 0:02:58.7]} 3... dxe4 {[%clk
0:02:58.7]} 4. Nxe4 {[%clk 0:02:59.6]} 4... Nf6 {[%clk 0:02:59.6]} 5. Nxf6+
{[%clk 0:02:58.4]} 5... exf6 {[%clk 0:03:00.5]} 6. c3 {[%clk 0:02:58.3]} 6...
Bd6 {[%clk 0:03:00.2]} 7. Bd3 {[%clk 0:02:58.9]} 7... h5 {[%clk 0:03:00.3]} 8.
Ne2 {[%clk 0:02:58.4]} 8... Qc7 {[%clk 0:02:56.7]} 9. Be3 {[%clk 0:02:52.7]}
9... h4 {[%clk 0:02:56]} 10. h3 {[%clk 0:02:52.5]} 10... O-O {[%clk 0:02:52.4]}
11. Qd2 {[%clk 0:02:52]} 11... Re8 {[%clk 0:02:50.2]} 12. O-O-O {[%clk
0:02:51.4]} 12... Nd7 {[%clk 0:02:45.2]} 13. Rhe1 {[%clk 0:02:49.9]} 13... Nf8
{[%clk 0:02:44.9]} 14. Kb1 {[%clk 0:02:42.7]} 14... a5 {[%clk 0:02:40.3]} 15.
Bf4 {[%clk 0:02:32.3]} 15... Rxe2 {[%clk 0:02:19.6]} 16. Bxd6 {[%clk 0:02:31.7]}
16... Rxd2 {[%clk 0:02:19.1]} 17. Bxc7 {[%clk 0:02:32]} 17... Rxd3 {[%clk
0:02:10.1]} 18. Rxd3 {[%clk 0:02:28.3]} 18... Bf5 {[%clk 0:02:10.6]} 19. Kc2
{[%clk 0:02:12.8]} 19... Ne6 {[%clk 0:02:10]} 20. Bh2 {[%clk 0:02:09.4]} 20...
Rd8 {[%clk 0:02:04.1]} 21. Rd1 {[%clk 0:01:48]} 21... c5 {[%clk 0:01:56]} 22.
Kc1 {[%clk 0:01:36.5]} 22... Bxd3 {[%clk 0:01:53.1]} 23. Rxd3 {[%clk 0:01:37.4]}
23... cxd4 {[%clk 0:01:53.6]} 24. cxd4 {[%clk 0:01:35.7]} 24... Rxd4 {[%clk
0:01:39.5]} 25. Rxd4 {[%clk 0:01:28.5]} 25... Nxd4 {[%clk 0:01:40.4]} 26. Kd2
{[%clk 0:01:29]} 26... Nc6 {[%clk 0:01:36.1]} 27. Kc3 {[%clk 0:01:26.4]} 27...
b5 {[%clk 0:01:33]} 28. a4 {[%clk 0:01:21.9]} 28... bxa4 {[%clk 0:01:25.9]} 29.
Kc4 {[%clk 0:01:21.7]} 29... Ne5+ {[%clk 0:01:21.3]} 30. Bxe5 {[%clk 0:01:13.5]}
30... fxe5 {[%clk 0:01:22.2]} 31. Kb5 {[%clk 0:01:14.2]} 31... f5 {[%clk
0:00:55]} 32. Kxa5 {[%clk 0:01:10.5]} 32... e4 {[%clk 0:00:21.8]} 33. Kxa4
{[%clk 0:01:08.5]} 33... f4 {[%clk 0:00:22.3]} 34. Kb4 {[%clk 0:01:05.2]} 34...
f3 {[%clk 0:00:22.2]} 35. gxf3 {[%clk 0:01:03.9]} 35... exf3 {[%clk 0:00:22.8]}
36. Kc4 {[%clk 0:01:00.7]} 36... g5 {[%clk 0:00:23]} 37. Kd4 {[%clk 0:01:00.3]}
37... g4 {[%clk 0:00:23.2]} 38. Ke3 {[%clk 0:00:59.9]} 38... gxh3 {[%clk
0:00:21.8]} 39. Kxf3 {[%clk 0:00:57.5]} 39... Kf7 {[%clk 0:00:21.8]} 40. b3
{[%clk 0:00:51]} 40... Ke6 {[%clk 0:00:20.4]} 0-1

[Event "Early-Titled-Tuesday-Blitz-October-24-2023"]
[Site "Chess.com"]
[Date "2023.10.24"]
[Round "2"]
[White "GMG"]
[Black "MasterKroket"]
[Result "1-0"]
[WhiteElo "2778"]
[BlackElo "2530"]
[TimeControl "180+1"]
[EndTime "8:16:27 PDT"]
[Termination "GMG won by resignation"]

1. Nf3 {[%clk 0:02:58.7]} 1... Nf6 {[%clk 0:02:58.4]} 2. g3 {[%clk 0:02:58.8]}
2... g6 {[%clk 0:02:58.7]} 3. Bg2 {[%clk 0:02:59.1]} 3... Bg7 {[%clk 0:02:59.3]}
4. c4 {[%clk 0:02:59]} 4... O-O {[%clk 0:02:59.3]} 5. d4 {[%clk 0:02:59.7]} 5...
d6 {[%clk 0:02:59.3]} 6. Nc3 {[%clk 0:02:59.6]} 6... Nbd7 {[%clk 0:02:56.7]} 7.
O-O {[%clk 0:02:59.9]} 7... e5 {[%clk 0:02:57]} 8. e4 {[%clk 0:02:59.6]} 8... a5
{[%clk 0:02:50.5]} 9. Re1 {[%clk 0:02:54.4]} 9... h6 {[%clk 0:02:49.5]} 10. h3
{[%clk 0:02:50.2]} 10... Kh7 {[%clk 0:02:48.5]} 11. Be3 {[%clk 0:02:46.5]} 11...
b6 {[%clk 0:02:37]} 12. Qc2 {[%clk 0:02:38.9]} 12... Bb7 {[%clk 0:02:34.1]} 13.
Rad1 {[%clk 0:02:38.9]} 13... Qe7 {[%clk 0:02:28.9]} 14. b3 {[%clk 0:02:36.9]}
14... c5 {[%clk 0:02:14.9]} 15. dxe5 {[%clk 0:02:30.9]} 15... Nxe5 {[%clk
0:02:14.6]} 16. Nxe5 {[%clk 0:02:25.3]} 16... dxe5 {[%clk 0:02:14.4]} 17. a4
{[%clk 0:02:14.6]} 17... Ne8 {[%clk 0:02:05.7]} 18. Rd2 {[%clk 0:01:55.4]} 18...
Nc7 {[%clk 0:02:04.3]} 19. Nd5 {[%clk 0:01:54.2]} 19... Nxd5 {[%clk 0:02:02.8]}
20. cxd5 {[%clk 0:01:52.9]} 20... Qd6 {[%clk 0:02:00.9]} 21. f4 {[%clk
0:01:49.4]} 21... Rae8 {[%clk 0:01:52.5]} 22. f5 {[%clk 0:01:45.4]} 22... gxf5
{[%clk 0:01:47.7]} 23. exf5 {[%clk 0:01:44.9]} 23... Bf6 {[%clk 0:01:48.3]} 24.
Be4 {[%clk 0:01:40]} 24... Rg8 {[%clk 0:01:46]} 25. Kh2 {[%clk 0:01:39.9]} 25...
Bg5 {[%clk 0:01:40.5]} 26. f6+ {[%clk 0:01:39]} 26... Kh8 {[%clk 0:01:40.3]} 27.
Bxg5 {[%clk 0:01:32.5]} 27... Rxg5 {[%clk 0:01:37.4]} 28. Rf1 {[%clk 0:01:33.1]}
28... Reg8 {[%clk 0:01:22.8]} 29. Rf3 {[%clk 0:01:28.8]} 29... h5 {[%clk
0:01:12.9]} 30. Qc3 {[%clk 0:01:24.4]} 30... Bc8 {[%clk 0:01:00.9]} 31. Qd3
{[%clk 0:01:19.8]} 31... Qd7 {[%clk 0:01:00.4]} 32. Qf1 {[%clk 0:01:20.4]} 32...
c4 {[%clk 0:00:57.4]} 33. bxc4 {[%clk 0:01:18]} 33... Qxa4 {[%clk 0:00:57.6]}
34. d6 {[%clk 0:01:12.7]} 34... Bd7 {[%clk 0:00:46.8]} 35. Bd5 {[%clk
0:01:08.3]} 35... Rf8 {[%clk 0:00:39.4]} 36. Qf2 {[%clk 0:01:08.4]} 36... Qb4
{[%clk 0:00:34.3]} 37. Qe3 {[%clk 0:01:08.7]} 37... Rg6 {[%clk 0:00:31.6]} 38.
Be4 {[%clk 0:01:02.4]} 38... Qc5 {[%clk 0:00:14.5]} 39. Qxc5 {[%clk 0:00:59.4]}
39... bxc5 {[%clk 0:00:15.4]} 40. Bxg6 {[%clk 0:00:58.3]} 40... fxg6 {[%clk
0:00:16.3]} 41. Re3 {[%clk 0:00:48.1]} 41... Rxf6 {[%clk 0:00:15.6]} 42. Rxe5
{[%clk 0:00:48.2]} 1-0

[Event "Early-Titled-Tuesday-Blitz-October-24-2023"]
[Site "Chess.com"]
[Date "2023.10.24"]
[Round "2"]
[White "Shivagami"]
[Black "Actuary44"]
[Result "0-1"]
[WhiteElo "2246"]
[BlackElo "2502"]
[TimeControl "180+1"]
[EndTime "8:16:27 PDT"]
[Termination "Actuary44 won on time"]

1. d4 {[%clk 0:03:00.9]} 1... Nf6 {[%clk 0:02:59.9]} 2. Bf4 {[%clk 0:02:56.5]}
2... g6 {[%clk 0:03:00.2]} 3. Nc3 {[%clk 0:02:55.3]} 3... d5 {[%clk 0:02:57.3]}
4. e3 {[%clk 0:02:54.3]} 4... Bg7 {[%clk 0:02:57.8]} 5. h4 {[%clk 0:02:54.6]}
5... c5 {[%clk 0:02:56.6]} 6. h5 {[%clk 0:02:52]} 6... Nxh5 {[%clk 0:02:53.7]}
7. Rxh5 {[%clk 0:02:44.1]} 7... gxh5 {[%clk 0:02:54.6]} 8. Qxh5 {[%clk
0:02:43.9]} 8... cxd4 {[%clk 0:02:52.3]} 9. Nxd5 {[%clk 0:02:35.8]} 9... Na6
{[%clk 0:02:40.4]} 10. Bxa6 {[%clk 0:02:26]} 10... bxa6 {[%clk 0:02:36.7]} 11.
Nc7+ {[%clk 0:02:22.3]} 11... Kf8 {[%clk 0:02:36.8]} 12. Nxa8 {[%clk 0:02:21.1]}
12... dxe3 {[%clk 0:02:31.8]} 13. Rd1 {[%clk 0:02:08.9]} 13... exf2+ {[%clk
0:02:27.7]} 14. Kxf2 {[%clk 0:02:08.2]} 14... Bd7 {[%clk 0:02:24.9]} 15. Qd5
{[%clk 0:01:59.2]} 15... e5 {[%clk 0:01:57.7]} 16. Be3 {[%clk 0:01:52.1]} 16...
Qh4+ {[%clk 0:01:51.7]} 17. Kf1 {[%clk 0:01:31.3]} 17... Bb5+ {[%clk 0:01:26]}
18. Ne2 {[%clk 0:01:23.4]} 18... Bf6 {[%clk 0:01:21.3]} 19. Nc7 {[%clk
0:01:05.5]} 19... Bc4 {[%clk 0:01:15.3]} 20. Qd6+ {[%clk 0:01:02]} 20... Kg7
{[%clk 0:01:14.8]} 21. Qa3 {[%clk 0:00:11.1]} 21... Bxe2+ {[%clk 0:01:04.8]} 22.
Kxe2 {[%clk 0:00:11.1]} 22... Qc4+ {[%clk 0:01:05.3]} 23. Qd3 {[%clk 0:00:08.6]}
23... Qxc7 {[%clk 0:01:06.2]} 24. Rf1 {[%clk 0:00:06.4]} 24... Qc6 {[%clk
0:00:54.2]} 25. Qf5 {[%clk 0:00:04.3]} 25... Qxg2+ {[%clk 0:00:51.7]} 26. Rf2
{[%clk 0:00:04.8]} 26... Qg6 {[%clk 0:00:51.4]} 27. Qf3 {[%clk 0:00:03.1]} 27...
Qxc2+ {[%clk 0:00:48.2]} 28. Bd2 {[%clk 0:00:03]} 28... Qc4+ {[%clk 0:00:39]}
29. Ke1 {[%clk 0:00:03]} 29... Bh4 {[%clk 0:00:33]} 0-1

[Event "Early-Titled-Tuesday-Blitz-October-24-2023"]
[Site "Chess.com"]
[Date "2023.10.24"]
[Round "2"]
[White "Russian_berezka"]
[Black "vedantgoswami"]
[Result "1-0"]
[WhiteElo "2693"]
[BlackElo "2380"]
[TimeControl "180+1"]
[EndTime "8:16:29 PDT"]
[Termination "Russian_berezka won by resignation"]

1. d4 {[%clk 0:03:00.9]} 1... c6 {[%clk 0:02:57.3]} 2. c4 {[%clk 0:03:01.1]}
2... d5 {[%clk 0:02:54.7]} 3. Nc3 {[%clk 0:03:01.7]} 3... Nf6 {[%clk 0:02:52.7]}
4. Nf3 {[%clk 0:03:02.1]} 4... g6 {[%clk 0:02:49.7]} 5. cxd5 {[%clk 0:02:51.4]}
5... cxd5 {[%clk 0:02:46.6]} 6. Bf4 {[%clk 0:02:51.8]} 6... Bg7 {[%clk 0:02:45]}
7. e3 {[%clk 0:02:51.9]} 7... a6 {[%clk 0:02:44.4]} 8. Be2 {[%clk 0:02:45.7]}
8... Nc6 {[%clk 0:02:43.8]} 9. O-O {[%clk 0:02:45.5]} 9... Nh5 {[%clk
0:02:43.1]} 10. Be5 {[%clk 0:02:29.8]} 10... f6 {[%clk 0:02:39.8]} 11. Bg3
{[%clk 0:02:28.8]} 11... Nxg3 {[%clk 0:02:39]} 12. hxg3 {[%clk 0:02:25.6]} 12...
O-O {[%clk 0:02:38.9]} 13. b4 {[%clk 0:02:13.2]} 13... e6 {[%clk 0:02:27.3]} 14.
Qb3 {[%clk 0:02:06.9]} 14... Rf7 {[%clk 0:02:13.9]} 15. Rfc1 {[%clk 0:02:00.1]}
15... Bf8 {[%clk 0:02:13.1]} 16. a3 {[%clk 0:01:59]} 16... Bd7 {[%clk
0:02:11.1]} 17. Na4 {[%clk 0:01:59.1]} 17... b6 {[%clk 0:02:02.9]} 18. Rc2
{[%clk 0:01:49.9]} 18... Be8 {[%clk 0:02:00.7]} 19. Rac1 {[%clk 0:01:49.1]}
19... Ne7 {[%clk 0:01:27.3]} 20. g4 {[%clk 0:01:42.9]} 20... g5 {[%clk
0:01:20.8]} 21. b5 {[%clk 0:01:24]} 21... a5 {[%clk 0:01:00.6]} 22. Rc7 {[%clk
0:01:10.1]} 22... Nc8 {[%clk 0:00:57.2]} 23. Rxf7 {[%clk 0:01:02.1]} 23... Bxf7
{[%clk 0:00:55.7]} 24. Rc6 {[%clk 0:00:59.8]} 24... Bd6 {[%clk 0:00:51.9]} 25.
Bd3 {[%clk 0:00:46.1]} 25... Be8 {[%clk 0:00:51.2]} 26. Rc1 {[%clk 0:00:43.9]}
26... Qe7 {[%clk 0:00:46.7]} 27. Rc3 {[%clk 0:00:41.4]} 27... Bd7 {[%clk
0:00:35.7]} 28. e4 {[%clk 0:00:41.4]} 28... dxe4 {[%clk 0:00:31]} 29. Bxe4
{[%clk 0:00:42.3]} 29... Ra7 {[%clk 0:00:28.4]} 30. Qc2 {[%clk 0:00:42.5]} 30...
Qd8 {[%clk 0:00:19.1]} 31. Bxh7+ {[%clk 0:00:42.1]} 31... Kh8 {[%clk 0:00:16.9]}
32. Be4 {[%clk 0:00:25.6]} 32... Bxb5 {[%clk 0:00:16.2]} 33. Rxc8 {[%clk
0:00:23.1]} 1-0

[Event "Early-Titled-Tuesday-Blitz-October-24-2023"]
[Site "Chess.com"]
[Date "2023.10.24"]
[Round "2"]
[White "dropstoneDP"]
[Black "Doomfist26"]
[Result "1-0"]
[WhiteElo "3085"]
[BlackElo "2623"]
[TimeControl "180+1"]
[EndTime "8:16:33 PDT"]
[Termination "dropstoneDP won on time"]

1. e4 {[%clk 0:03:00.9]} 1... c5 {[%clk 0:02:56]} 2. Nf3 {[%clk 0:03:01.4]} 2...
d6 {[%clk 0:02:55.1]} 3. d4 {[%clk 0:03:02]} 3... cxd4 {[%clk 0:02:56]} 4. Nxd4
{[%clk 0:03:02.9]} 4... Nf6 {[%clk 0:02:56.8]} 5. Nc3 {[%clk 0:03:03.4]} 5...
Bd7 {[%clk 0:02:57.5]} 6. f3 {[%clk 0:03:03.3]} 6... e5 {[%clk 0:02:52.9]} 7.
Nb3 {[%clk 0:03:03.5]} 7... Be7 {[%clk 0:02:53.6]} 8. Be3 {[%clk 0:03:03.9]}
8... O-O {[%clk 0:02:54.4]} 9. g4 {[%clk 0:03:04.4]} 9... a5 {[%clk 0:02:54.6]}
10. g5 {[%clk 0:03:04]} 10... Nh5 {[%clk 0:02:55.1]} 11. Nd5 {[%clk 0:02:54.3]}
11... Bxg5 {[%clk 0:02:49.4]} 12. Bxg5 {[%clk 0:02:49.5]} 12... Qxg5 {[%clk
0:02:50.3]} 13. Qd2 {[%clk 0:02:49.8]} 13... Qh4+ {[%clk 0:02:45.4]} 14. Qf2
{[%clk 0:02:49]} 14... Qxf2+ {[%clk 0:02:45.7]} 15. Kxf2 {[%clk 0:02:49.9]}
15... a4 {[%clk 0:02:40.4]} 16. Nd2 {[%clk 0:02:50.2]} 16... Be6 {[%clk
0:02:29.8]} 17. Nc7 {[%clk 0:02:41.3]} 17... Ra5 {[%clk 0:02:28.2]} 18. c3
{[%clk 0:02:37.1]} 18... Rc5 {[%clk 0:02:15.4]} 19. Nxe6 {[%clk 0:02:37]} 19...
fxe6 {[%clk 0:02:16.3]} 20. Nc4 {[%clk 0:02:30]} 20... d5 {[%clk 0:01:29.5]} 21.
exd5 {[%clk 0:02:30.9]} 21... Rxd5 {[%clk 0:01:30.1]} 22. Re1 {[%clk 0:02:18.2]}
22... Nc6 {[%clk 0:01:28.2]} 23. Nb6 {[%clk 0:02:14]} 23... Rd2+ {[%clk
0:01:24.4]} 24. Re2 {[%clk 0:02:13.3]} 24... Rxe2+ {[%clk 0:01:21.4]} 25. Bxe2
{[%clk 0:02:12.6]} 25... e4 {[%clk 0:01:21.9]} 26. Nxa4 {[%clk 0:02:04.5]} 26...
exf3 {[%clk 0:01:21.1]} 27. Bc4 {[%clk 0:02:04.8]} 27... Ne5 {[%clk 0:01:05.3]}
28. Bxe6+ {[%clk 0:02:04.4]} 28... Kh8 {[%clk 0:01:05.5]} 29. Nc5 {[%clk
0:02:00.6]} 29... Nf4 {[%clk 0:01:00.9]} 30. Rd1 {[%clk 0:01:48.1]} 30... b6
{[%clk 0:00:50.9]} 31. Nd7 {[%clk 0:01:46.9]} 31... Rd8 {[%clk 0:00:45]} 32.
Nxe5 {[%clk 0:01:45.1]} 32... Rxd1 {[%clk 0:00:43.9]} 33. Bb3 {[%clk 0:01:44.1]}
33... Rb1 {[%clk 0:00:41.8]} 34. Kxf3 {[%clk 0:01:35.4]} 34... Ng6 {[%clk
0:00:35]} 35. Nf7+ {[%clk 0:01:33.8]} 35... Kg8 {[%clk 0:00:34.4]} 36. Ng5+
{[%clk 0:01:33.4]} 36... Kf8 {[%clk 0:00:34]} 37. Nxh7+ {[%clk 0:01:32.3]} 37...
Ke7 {[%clk 0:00:31.7]} 38. Bc2 {[%clk 0:01:32.8]} 38... Rg1 {[%clk 0:00:26.4]}
39. Kf2 {[%clk 0:01:32.9]} 39... Ra1 {[%clk 0:00:06.3]} 40. Bxg6 {[%clk
0:01:32.4]} 40... Rxa2 {[%clk 0:00:06.9]} 41. h4 {[%clk 0:01:32.8]} 41... Rxb2+
{[%clk 0:00:07.8]} 42. Ke3 {[%clk 0:01:33.2]} 42... Rh2 {[%clk 0:00:07.5]} 43.
h5 {[%clk 0:01:33.5]} 43... b5 {[%clk 0:00:07.4]} 44. Ng5 {[%clk 0:01:33.3]}
44... Rh4 {[%clk 0:00:06.3]} 45. Ne4 {[%clk 0:01:33.5]} 45... Rh1 {[%clk
0:00:05.4]} 46. Kd4 {[%clk 0:01:34]} 46... Rb1 {[%clk 0:00:03.6]} 47. Kc5 {[%clk
0:01:34.4]} 47... Rb3 {[%clk 0:00:03.7]} 48. Bf5 {[%clk 0:01:31.2]} 48... Rb2
{[%clk 0:00:04]} 49. Bh7 {[%clk 0:01:27.1]} 49... Rb3 {[%clk 0:00:04.3]} 50. Bg6
{[%clk 0:01:27.7]} 50... Rb2 {[%clk 0:00:04.8]} 51. Nd6 {[%clk 0:01:27.5]} 51...
Kf6 {[%clk 0:00:02.1]} 52. Nxb5 {[%clk 0:01:27]} 52... Ke5 {[%clk 0:00:01.9]}
53. c4 {[%clk 0:01:27.4]} 53... Rh2 {[%clk 0:00:01.4]} 54. Kb6 {[%clk
0:01:27.6]} 54... Rh1 {[%clk 0:00:02.1]} 55. c5 {[%clk 0:01:28.2]} 55... Rc1
{[%clk 0:00:01.6]} 56. c6 {[%clk 0:01:28.1]} 56... Kf6 {[%clk 0:00:01.1]} 57. c7
{[%clk 0:01:28.3]} 1-0

[Event "Early-Titled-Tuesday-Blitz-October-24-2023"]
[Site "Chess.com"]
[Date "2023.10.24"]
[Round "2"]
[White "falzehope0"]
[Black "leejunhyeok"]
[Result "0-1"]
[WhiteElo "2338"]
[BlackElo "2666"]
[TimeControl "180+1"]
[EndTime "8:16:35 PDT"]
[Termination "leejunhyeok won by checkmate"]

1. d4 {[%clk 0:03:00.9]} 1... Nf6 {[%clk 0:02:58.8]} 2. e3 {[%clk 0:03:01.1]}
2... g6 {[%clk 0:02:58]} 3. Bd3 {[%clk 0:03:01.3]} 3... Bg7 {[%clk 0:02:58.2]}
4. f4 {[%clk 0:03:01.7]} 4... d6 {[%clk 0:02:57.8]} 5. Nf3 {[%clk 0:03:02]} 5...
Nc6 {[%clk 0:02:57.9]} 6. O-O {[%clk 0:03:01.9]} 6... O-O {[%clk 0:02:57.7]} 7.
e4 {[%clk 0:03:01.3]} 7... e5 {[%clk 0:02:57.7]} 8. d5 {[%clk 0:03:00.6]} 8...
Nb4 {[%clk 0:02:34.6]} 9. fxe5 {[%clk 0:02:56.6]} 9... dxe5 {[%clk 0:02:34.7]}
10. Kh1 {[%clk 0:02:54.9]} 10... Nxd3 {[%clk 0:02:30.6]} 11. Qxd3 {[%clk
0:02:47.2]} 11... c6 {[%clk 0:02:24.4]} 12. c4 {[%clk 0:02:46.5]} 12... cxd5
{[%clk 0:02:24.1]} 13. cxd5 {[%clk 0:02:44.8]} 13... Ne8 {[%clk 0:02:23.5]} 14.
Be3 {[%clk 0:02:38]} 14... Nd6 {[%clk 0:02:21.8]} 15. Nc3 {[%clk 0:02:25.9]}
15... b6 {[%clk 0:02:15.4]} 16. Nb5 {[%clk 0:02:11.8]} 16... Ba6 {[%clk
0:02:10.3]} 17. a4 {[%clk 0:02:11.3]} 17... Qd7 {[%clk 0:02:08.4]} 18. Rfc1
{[%clk 0:01:53.9]} 18... Nxb5 {[%clk 0:01:50.1]} 19. axb5 {[%clk 0:01:48.7]}
19... Bxb5 {[%clk 0:01:47.5]} 20. Qa3 {[%clk 0:01:45.4]} 20... Rfc8 {[%clk
0:01:36.4]} 21. h3 {[%clk 0:01:33.8]} 21... Rxc1+ {[%clk 0:01:24.7]} 22. Rxc1
{[%clk 0:01:27.6]} 22... Bf8 {[%clk 0:01:21.4]} 23. Qb3 {[%clk 0:01:17.6]} 23...
Ba4 {[%clk 0:01:07.4]} 24. Qa2 {[%clk 0:01:05.4]} 24... Bd6 {[%clk 0:01:01.5]}
25. b3 {[%clk 0:01:02.6]} 25... Bb5 {[%clk 0:01:01.4]} 26. Bxb6 {[%clk
0:00:59.6]} 26... Bd3 {[%clk 0:00:49.5]} 27. Nd2 {[%clk 0:00:51.7]} 27... Rc8
{[%clk 0:00:29.3]} 28. Rxc8+ {[%clk 0:00:31.7]} 28... Qxc8 {[%clk 0:00:30.2]}
29. Be3 {[%clk 0:00:30.3]} 29... a6 {[%clk 0:00:26.9]} 30. Nc4 {[%clk
0:00:28.3]} 30... Bf8 {[%clk 0:00:13.3]} 31. Qa4 {[%clk 0:00:25.4]} 31... Bxe4
{[%clk 0:00:11.2]} 32. Qa5 {[%clk 0:00:18.2]} 32... Qxh3+ {[%clk 0:00:08.7]} 33.
Kg1 {[%clk 0:00:17.8]} 33... Qxg2# {[%clk 0:00:09.6]} 0-1

[Event "Early-Titled-Tuesday-Blitz-October-24-2023"]
[Site "Chess.com"]
[Date "2023.10.24"]
[Round "2"]
[White "C_K_G"]
[Black "Laico"]
[Result "1-0"]
[WhiteElo "1874"]
[BlackElo "2399"]
[TimeControl "180+1"]
[EndTime "8:16:35 PDT"]
[Termination "C_K_G won on time"]

1. e4 {[%clk 0:03:00.9]} 1... e6 {[%clk 0:02:49.6]} 2. Nf3 {[%clk 0:03:00.9]}
2... d5 {[%clk 0:02:49.5]} 3. Nc3 {[%clk 0:03:01.5]} 3... Nf6 {[%clk 0:02:49.5]}
4. e5 {[%clk 0:03:01.1]} 4... Nfd7 {[%clk 0:02:50.1]} 5. d4 {[%clk 0:03:01.6]}
5... c5 {[%clk 0:02:50.8]} 6. Bg5 {[%clk 0:03:02.1]} 6... Qb6 {[%clk 0:02:49.5]}
7. dxc5 {[%clk 0:03:02.4]} 7... Bxc5 {[%clk 0:02:48.2]} 8. Qd2 {[%clk
0:03:02.5]} 8... Bxf2+ {[%clk 0:02:38.8]} 9. Qxf2 {[%clk 0:03:03.4]} 9... Qxb2
{[%clk 0:02:39.2]} 10. Kd2 {[%clk 0:03:02.8]} 10... Qxa1 {[%clk 0:02:33.5]} 11.
Bb5 {[%clk 0:02:59.8]} 11... Qxh1 {[%clk 0:00:44.2]} 12. Qc5 {[%clk 0:02:59.4]}
12... Qxg2+ {[%clk 0:00:44.6]} 13. Kc1 {[%clk 0:02:58.6]} 13... Nc6 {[%clk
0:00:36.4]} 14. Bxc6 {[%clk 0:02:57.4]} 14... Qxg5+ {[%clk 0:00:36.3]} 15. Nxg5
{[%clk 0:02:53.1]} 15... bxc6 {[%clk 0:00:37.2]} 16. Qd6 {[%clk 0:02:46]} 16...
Bb7 {[%clk 0:00:20.6]} 17. Nxe6 {[%clk 0:02:34.1]} 17... fxe6 {[%clk 0:00:19.2]}
18. Qxe6+ {[%clk 0:02:34.3]} 18... Kd8 {[%clk 0:00:19.3]} 19. Qd6 {[%clk
0:02:31.6]} 19... Kc8 {[%clk 0:00:14.3]} 20. e6 {[%clk 0:02:26]} 20... Nb6
{[%clk 0:00:14.1]} 21. e7 {[%clk 0:02:18.5]} 21... Re8 {[%clk 0:00:09.7]} 22.
Ne2 {[%clk 0:01:51.3]} 22... Nc4 {[%clk 0:00:09.4]} 23. Qe6+ {[%clk 0:01:48.9]}
23... Kc7 {[%clk 0:00:09.8]} 24. Nd4 {[%clk 0:01:44.5]} 24... g6 {[%clk
0:00:08.6]} 25. Nb3 {[%clk 0:01:40.8]} 25... Kb6 {[%clk 0:00:08.2]} 26. a4
{[%clk 0:01:24.8]} 26... a5 {[%clk 0:00:05.5]} 27. Qd7 {[%clk 0:01:21.9]} 27...
Rac8 {[%clk 0:00:03.8]} 28. c3 {[%clk 0:01:14.2]} 28... Ne5 {[%clk 0:00:01.8]}
29. Qd6 {[%clk 0:01:09.3]} 29... Nc4 {[%clk 0:00:02.7]} 30. Qd7 {[%clk 0:01:06]}
30... Ne5 {[%clk 0:00:01.8]} 31. Qe6 {[%clk 0:01:06.1]} 31... Nc4 {[%clk
0:00:01.2]} 32. Qf7 {[%clk 0:00:58.1]} 32... Ne5 {[%clk 0:00:01.1]} 33. Qf6
{[%clk 0:00:51.7]} 33... Nc4 {[%clk 0:00:01.4]} 34. Qf7 {[%clk 0:00:34.2]} 1-0